[Event "DEN-chT XtraCon 2018-19"]
[Site "Denmark"]
[Date "2019.03.17"]
[Round "9"]
[White "Hoffmann, Tobias"]
[Black "Vasli, Aref"]
[Result "1/2-1/2"]
[ECO "A61"]
[WhiteElo "2056"]
[BlackElo "2357"]
[Annotator "NA"]
[PlyCount "140"]
[EventDate "2018.10.27"]
[EventType "team-tourn"]
[EventCountry "DEN"]
[SourceTitle "playchess.com"]
[Source "ChessBase"]
[SourceQuality "1"]
[TimeControl "40/5400+30:1800+30"]

1. d4 {[%emt 0:00:00]} Nf6 {[%emt 0:00:00]} 2. c4 {[%emt 0:00:00]} e6 {[%emt 0:00:00]} 3. Nc3 {[%emt 0:00:44]} c5 {[%emt 0:00:00]} 4. d5 {[%emt 0:02:19]} exd5 {[%emt 0:00:00]} 5. cxd5 {[%emt 0:00:04]} d6 {[%emt 0:00:04]} 6. Nf3 {[%emt 0:00:45]} g6 {[%emt 0:00:07]} 7. Nd2 {[%emt 0:00:42]} Bg7 {[%emt 0:00:09]} 8. Nc4 {[%emt 0:00:39]} O-O {[%emt 0:00:48]} 9. Bf4 {[%emt 0:01:58]} Ne8 {[%emt 0:00:08]} 10. a4 {[%emt 0:01:11] A61: Modern Benoni: Nf3 without early e4} (10. Qd2 b6 11. e3 Ba6 12. a4 Nd7 13. Be2 Bxc4 14. Bxc4 a6 15. O-O Ne5 16. Be2 Nc7 17. Rab1 Qe7 18. b4 c4 {½-½ (32) Chakravarthi,R (2442)-Mareco,S (2645) Dubai 2018}) 10... Nd7 {[%emt 0:06:28]} 11. Bxd6 $146 {[%emt 0:19:30]} ({Wrong is} 11. Nxd6 $2 Nxd6 12. Bxd6 Bxc3+ 13. bxc3 Qf6 $19 {[%mdl 64] Double Attack}) ({Predecessor:} 11. Qd2 Qe7 12. h4 b6 13. h5 Ba6 14. Nb5 Ne5 15. Bxe5 Bxe5 16. Ra3 Bxb5 17. axb5 Nf6 18. hxg6 fxg6 {1-0 (31) Bykhovsky,A (2396)-Nabaty,T (2504) Tel Aviv 2009}) 11... Nxd6 {[%emt 0:04:44]} 12. Nxd6 {[%emt 0:01:03]} Qb6 {[%emt 0:06:48]} 13. Nc4 $2 {[%emt 0:05:26]} (13. Ncb5 $11 {and White stays safe.}) 13... Qxb2 {[%emt 0:05:06]} 14. Nxb2 {[%emt 0:00:14]} Bxc3+ {[%emt 0:00:06]} 15. Qd2 {[%emt 0:00:02]} Bxd2+ {[%emt 0:00:06]} 16. Kxd2 {[%emt 0:00:05]} Nf6 {[%emt 0:00:04]} 17. f3 {[%emt 0:07:57]} Nxd5 {[%emt 0:01:00]} 18. e4 {[%emt 0:00:06]} Nb4 {[%emt 0:05:56]} 19. a5 {[%emt 0:01:47]} Rd8+ {[%emt 0:03:37]} 20. Kc3 {[%emt 0:00:12]} Be6 {[%emt 0:02:07]} 21. Be2 $19 {[%emt 0:03:59]} Rd4 {[%emt 0:20:15]} 22. Rhd1 {[%emt 0:02:53]} Na2+ {[%emt 0:00:43]} 23. Kc2 {[%emt 0:01:05]} Rb4 {[%emt 0:08:45]} 24. Rd3 {[%emt 0:03:27]} Rd4 {[%emt 0:19:11]} 25. Kb1 {[%emt 0:19:51]} Rxd3 {[%emt 0:01:30]} 26. Bxd3 {[%emt 0:00:36]} Nb4 {[%emt 0:00:05]} 27. Be2 {[%emt 0:00:27]} Rd8 {[%emt 0:00:06]} 28. Kc1 {[%emt 0:00:28]} Kf8 {[%emt 0:05:32]} 29. Ra3 {[%emt 0:00:22]} Ke7 {[%emt 0:00:17]} 30. Na4 {[%emt 0:04:55]} Kd6 {[%emt 0:00:58]} 31. f4 {[%emt 0:00:21]} Kc6 {[%emt 0:00:48]} 32. Re3 {[%emt 0:03:44]} Rd4 {[%emt 0:00:59]} 33. Nb2 {[%emt 0:01:58]} b5 {[%emt 0:01:18]} 34. axb6 {[%emt 0:00:39]} axb6 {[%emt 0:00:01]} 35. g4 {[%emt 0:00:08]} Na2+ {[%emt 0:04:04]} 36. Kc2 {[%emt 0:00:41]} Nb4+ {[%emt 0:00:01]} 37. Kc1 {[%emt 0:00:18]} Na2+ {[%emt 0:00:03]} 38. Kc2 {[%emt 0:00:04]} Nb4+ {[%emt 0:00:04]} 39. Kc1 {[%emt 0:00:16]} f6 {[%emt 0:02:02]} 40. h4 {[%emt 0:01:00]} Na2+ {[%emt 0:00:43]} 41. Kc2 {[%emt 0:30:07]} Nb4+ {[%emt 0:30:01]} 42. Kc1 {[%emt 0:00:04]} Kd6 {[%emt 0:00:47]} 43. f5 {[%emt 0:03:52]} gxf5 {[%emt 0:00:12]} 44. exf5 {[%emt 0:00:06]} Bf7 {[%emt 0:00:27]} 45. Ra3 {[%emt 0:08:52]} Bd5 {[%emt 0:00:00]} 46. h5 {[%emt 0:00:00]} h6 {[%emt 0:00:00]} 47. Ra7 {[%emt 0:00:00]} Re4 {[%emt 0:00:00]} 48. Kd2 {[%emt 0:00:00]} Re7 {[%emt 0:00:00]} 49. Rxe7 {[%emt 0:00:00]} Kxe7 {[%emt 0:00:00]} 50. Na4 {[%emt 0:00:00]} Kd6 {[%emt 0:00:00]} 51. Nxb6 {[%emt 0:00:00]} Bf7 {[%emt 0:00:00]} 52. Bb5 {[%emt 0:00:00]} Nc6 {[%emt 0:00:53]} 53. Ke3 {[%emt 0:00:00]} Ne5 {[%emt 0:00:31]} 54. Be2 {[%emt 0:00:00]} Bb3 {[%emt 0:01:01]} 55. Nc8+ {[%emt 0:00:00]} Kd7 {[%emt 0:00:31]} 56. Na7 {[%emt 0:00:00]} Ba4 {[%emt 0:01:42]} 57. Ke4 {[%emt 0:00:00]} Bc6+ {[%emt 0:02:44]} 58. Nxc6 {[%emt 0:00:00]} Kxc6 {[%emt 0:04:55]} 59. g5 {[%emt 0:00:00]} hxg5 {[%emt 0:00:04]} 60. h6 {[%emt 0:00:00]} Nf7 {[%emt 0:00:36]} 61. h7 {[%emt 0:00:00]} Kd6 {[%emt 0:00:04]} 62. Bc4 {[%emt 0:00:00]} Nh8 {[%emt 0:00:01]} 63. Bb3 {[%emt 0:00:00]} Ke7 {[%emt 0:00:54]} 64. Kd5 {[%emt 0:00:34]} g4 {[%emt 0:00:42]} 65. Ke4 {[%emt 0:00:53]} Kf8 {[%emt 0:00:17]} 66. Kf4 {[%emt 0:00:35]} Kg7 {[%emt 0:00:10]} 67. Bg8 {[%emt 0:00:14]} c4 {[%emt 0:00:29]} 68. Bxc4 {[%emt 0:00:07]} Kxh7 {[%emt 0:00:05]} 69. Kxg4 {[%emt 0:00:06]} Ng6 {[%emt 0:00:29]} 70. fxg6+ {[%emt 0:00:05]} Kxg6 {[%emt 0:00:06]} 1/2-1/2

[Event "DEN-chT XtraCon 2018-19"]
[Site "Denmark"]
[Date "2019.03.17"]
[Round "9"]
[White "Munk, Kai"]
[Black "Andersen, Ib Hother"]
[Result "0-1"]
[ECO "A05"]
[WhiteElo "1958"]
[BlackElo "2155"]
[Annotator "NA"]
[PlyCount "128"]
[EventDate "2018.10.27"]
[EventType "team-tourn"]
[EventCountry "DEN"]
[SourceTitle "playchess.com"]
[Source "ChessBase"]
[SourceQuality "1"]
[TimeControl "40/5400+30:1800+30"]

1. Nf3 {[%emt 0:00:00]} Nf6 {[%emt 0:00:00]} 2. g3 {[%emt 0:00:14]} d5 {[%emt 0:00:00]} 3. Bg2 {[%emt 0:00:21]} c6 {[%emt 0:00:00]} 4. b3 {[%emt 0:03:32]} Bg4 {[%emt 0:02:51]} 5. Bb2 {[%emt 0:00:11]} Nbd7 {[%emt 0:00:05]} 6. d4 {[%emt 0:02:10]} e6 {[%emt 0:01:39]} 7. Nbd2 {[%emt 0:00:36]} Bd6 {[%emt 0:00:42]} 8. Ne5 {[%emt 0:05:38]} Bf5 {[%emt 0:00:12]} 9. O-O {[%emt 0:02:56]} O-O {[%emt 0:03:10]} 10. Nxd7 {[%emt 0:05:16] D02: 1 d4 d5 2 Nf3 sidelines, including 2...Nf6 3 g3 and 2...Nf6 3 Bf4} (10. f3 Nxe5 11. dxe5 Bc5+ 12. Kh1 Nd7 13. e4 dxe4 14. fxe4 Bg6 15. h4 h6 16. Nc4 h5 17. a4 Qc7 {0-1 (84) Harvey,M (2341)-Colovic,A (2456) England 2015}) 10... Qxd7 {[%emt 0:00:47]} 11. Re1 {[%emt 0:00:39]} a5 $146 {[%emt 0:09:37]} ({Predecessor:} 11... Bb4 12. a3 Be7 13. Rc1 Rfd8 14. c4 {½-½ (70) Baron,I (2010)-Pitam,E (2323) Ramat Aviv/Modiin 2000}) 12. a4 {[%emt 0:04:01]} Rfe8 {[%emt 0:00:36]} 13. e4 {[%emt 0:00:45]} dxe4 {[%emt 0:00:04]} 14. Nxe4 {[%emt 0:00:06]} Nxe4 {[%emt 0:00:12]} 15. Bxe4 {[%emt 0:00:08]} Bxe4 {[%emt 0:00:10]} 16. Rxe4 {[%emt 0:00:09]} Be7 {[%emt 0:00:35]} 17. Qe2 {[%emt 0:06:31]} Bf6 {[%emt 0:00:16]} 18. Re1 {[%emt 0:00:59]} c5 {[%emt 0:03:39]} 19. c3 {[%emt 0:05:49]} cxd4 {[%emt 0:00:32]} 20. cxd4 {[%emt 0:00:05] [#]} Red8 {[%emt 0:00:30]} (20... Qd5 $1 $17 21. Qc4 Red8) 21. Rc1 {[%emt 0:06:40]} (21. d5 $11 Qxd5 22. Bxf6 gxf6 23. Rg4+ Kf8 24. Rf4) 21... Rac8 {[%emt 0:04:14]} 22. Rxc8 {[%emt 0:13:18]} Rxc8 {[%emt 0:00:37]} 23. Qd3 {[%emt 0:07:43]} Qd5 {[%emt 0:01:19]} 24. f4 {[%emt 0:00:11]} g6 {[%emt 0:01:19]} 25. Re2 {[%emt 0:00:18]} Rc6 {[%emt 0:00:49]} 26. Re3 {[%emt 0:04:13]} h5 {[%emt 0:04:41]} 27. h3 {[%emt 0:03:53]} Bg7 {[%emt 0:03:25]} 28. Qd1 {[%emt 0:05:49]} Rd6 {[%emt 0:02:36]} 29. Kh2 {[%emt 0:01:15]} Bxd4 {[%emt 0:06:35]} 30. Bxd4 {[%emt 0:03:02]} Qxd4 {[%emt 0:00:16]} 31. Qxd4 {[%emt 0:00:05]} Rxd4 {[%emt 0:00:03]} 32. Kg2 {[%emt 0:00:08] [#]} h4 $1 {[%emt 0:01:47]} 33. Rc3 {[%emt 0:00:23]} Kg7 {[%emt 0:04:50]} 34. Kf3 {[%emt 0:02:35]} hxg3 {[%emt 0:00:35]} 35. Kxg3 {[%emt 0:00:05]} Kf6 {[%emt 0:00:22]} 36. h4 {[%emt 0:00:43]} b6 $19 {[%emt 0:00:30]} 37. Kg4 {[%emt 0:02:31]} Rb4 {[%emt 0:02:36]} 38. Re3 {[%emt 0:00:40]} Ke7 {[%emt 0:11:02]} 39. Kg5 {[%emt 0:03:38]} Rd4 {[%emt 0:02:46]} 40. Rc3 {[%emt 0:02:30]} Rd5+ {[%emt 0:02:09]} 41. Kg4 {[%emt 0:30:59]} Kd7 {[%emt 0:31:15]} 42. Rc4 {[%emt 0:06:51]} Rc5 {[%emt 0:08:46]} 43. Rd4+ {[%emt 0:01:43]} Kc6 {[%emt 0:04:11]} 44. Rd8 {[%emt 0:00:53]} Rf5 {[%emt 0:00:28]} 45. Rd4 {[%emt 0:00:00]} b5 {[%emt 0:00:00]} 46. axb5+ {[%emt 0:00:00]} Rxb5 {[%emt 0:00:00]} 47. Rc4+ {[%emt 0:00:00]} Rc5 {[%emt 0:00:00]} 48. Ra4 {[%emt 0:00:00]} Kb5 {[%emt 0:00:00]} 49. Rd4 {[%emt 0:00:00]} Rf5 {[%emt 0:00:00]} 50. Re4 {[%emt 0:00:00]} Kc6 {[%emt 0:00:00]} 51. Rc4+ {[%emt 0:00:00]} Rc5 {[%emt 0:00:00]} 52. Ra4 {[%emt 0:00:00]} Rb5 {[%emt 0:00:00]} 53. Rc4+ {[%emt 0:00:00]} Kd6 {[%emt 0:00:00]} 54. Ra4 {[%emt 0:00:00]} Ke7 {[%emt 0:00:00]} 55. Ra1 {[%emt 0:01:03]} Kf6 {[%emt 0:00:00]} 56. Ra2 {[%emt 0:00:18]} Kg7 {[%emt 0:00:00]} 57. Ra3 {[%emt 0:02:24]} Kh6 {[%emt 0:00:00]} 58. Kg3 {[%emt 0:01:59]} Kh5 {[%emt 0:00:00]} 59. Kh3 {[%emt 0:00:06]} Rd5 {[%emt 0:00:00]} 60. Kg3 {[%emt 0:00:52]} f5 {[%emt 0:00:51]} 61. b4 {[%emt 0:00:18]} axb4 {[%emt 0:00:24]} 62. Rb3 {[%emt 0:01:01]} Rb5 {[%emt 0:00:17]} 63. Rd3 {[%emt 0:00:49]} b3 {[%emt 0:00:26]} 64. Rd8 {[%emt 0:00:14]} Kh6 {[%emt 0:00:06]} 0-1